lending/lending_fUSD_20251016
["ID","MTS","AMOUNT","RATE_DAILY","PERIOD"]
[391374788,1760586646695,-621.97199794,0.00015,2]
[391374789,1760586646713,-10565.77665966,0.00015,2]
[391374790,1760586646722,-666.0,0.00015208,3]
[391374791,1760586646731,-500.0,0.00015521,2]
[391374792,1760586646745,-500.0,0.00015521,2]
[391374793,1760586646754,-977.39257816,0.00015521,2]
[391374794,1760586646765,-125.01752336,0.00015521,2]
[391374795,1760586646775,-782.28889251,0.00015521,2]
[391374796,1760586646784,-2.76484413,0.00015521,2]
[391374797,1760586646796,-997.23515587,0.00015521,2]
[391374798,1760586646806,-769.35185077,0.00016068,2]
[391374799,1760586646815,-1199.18089,0.0001612,2]
[391374800,1760586646824,-1199.18089,0.0001613,2]
[391374801,1760586646834,-1199.18089,0.0001616,2]
[391374802,1760586646843,-1199.18089,0.0001619,2]
[391374803,1760586646853,-5094.74182104,0.000162,5]
[391374804,1760586646863,-1199.18089,0.0001623,2]
[391374805,1760586646872,-1199.18089,0.0001625,2]
[391374806,1760586646882,-3212.84896246,0.00016466,2]
[391374807,1760586677274,500.0,0.00027397,120]
[391374808,1760586793748,500.0,0.00027397,120]
[391374809,1760586804262,500.0,0.00027397,120]
[391374810,1760586813216,500.0,0.00027397,120]
[391374821,1760586928919,184.0,0.00027397,120]
[391374835,1760587045728,1600.0,0.000259,120]
[391374842,1760587395921,500.0,0.00027397,120]
[391374843,1760587403399,2000.0,0.00027397,120]
[391374844,1760587434953,500.0,0.00027397,120]
[391374845,1760587438741,500.0,0.00027397,120]
[391374846,1760587582742,500.0,0.00027397,120]
[391374849,1760587831707,-539.678268,0.00014766,2]
[391374850,1760587831717,-1200.0,0.00014936,2]
[391374851,1760587831727,-161.66116298,0.00014937,2]
[391374852,1760587831764,-11264.24082143,0.00014937,2]
[391374853,1760587831774,-79382.99877662,0.0001499,2]
[391374854,1760587831786,-1254.41808677,0.0001499,2]
[391374855,1760587831797,-5359.303311,0.0001499,2]
[391374856,1760587831874,-10110.06839834,0.0001499,2]
[391374857,1760587831887,-900.0,0.0001499,2]
[391374858,1760587831899,-4498.31984365,0.0001499,2]
[391375325,1760587841210,-188.63777297,0.00014989,2]
[391375327,1760587841220,-115.30222703,0.00014989,2]
[391375372,1760587845742,-384.69777297,0.00014989,2]
[391375373,1760587845752,-500.0,0.00014989,2]
[391375374,1760587845762,-500.0,0.00014989,2]
[391375375,1760587845771,-500.0,0.00014989,2]
[391375376,1760587845782,-218.98763666,0.00014989,2]
[391375377,1760587845794,-281.01236334,0.00014989,2]
[391375378,1760587845805,-500.0,0.00014989,2]
[391375379,1760587845814,-500.0,0.00014989,2]
[391375380,1760587845824,-500.0,0.00014989,2]
[391375381,1760587845833,-500.0,0.00014989,2]
[391375382,1760587845842,-500.0,0.00014989,2]
[391375383,1760587845852,-500.0,0.00014989,2]
[391375384,1760587845861,-500.0,0.00014989,2]
[391375385,1760587845870,-500.0,0.00014989,2]
[391375386,1760587845880,-500.0,0.00014989,2]
[391375387,1760587845889,-500.0,0.00014989,2]
[391375388,1760587845899,-518.57580869,0.00014989,2]
[391375389,1760587845908,-500.0,0.00014989,2]
[391375390,1760587845918,-500.0,0.00014989,2]
[391375391,1760587845927,-500.0,0.00014989,2]
[391375392,1760587845936,-500.0,0.00014989,2]
[391375393,1760587845945,-500.0,0.00014989,2]
[391375394,1760587845955,-2850.41182797,0.0001499,2]
[391375395,1760587845966,-256.67,0.0001499,2]
[391375396,1760587845978,-22338.0,0.0001499,2]
[391375409,1760587949552,475.0,0.00027397,120]
[391375410,1760587995783,500.0,0.00027397,120]
[391375411,1760588002058,2000.0,0.00027397,120]
[391375413,1760588019146,500.0,0.00027397,120]
[391375414,1760588025637,500.0,0.00027397,120]
[391375417,1760588233739,1000.0,0.00012753,2]
[391375418,1760588408584,1047.788116,7.945e-05,2]
[391375419,1760588493490,500.0,0.00027397,120]
[391375420,1760588493650,500.0,0.00027397,120]
[391375421,1760588493816,500.0,0.00027397,120]
[391375422,1760588594798,500.0,0.00027397,120]
[391375423,1760588601353,2000.0,0.00027397,120]
[391375424,1760588615306,500.0,0.00027397,120]
[391375425,1760588620695,500.0,0.00027397,120]
[391375426,1760588625293,165.40720871,0.00027397,120]
[391375427,1760588699026,416.427397,0.0002739,120]
[391375428,1760588733033,1511.23231843,0.00027397,120]
[391375433,1760588925452,427.57,0.0002739,120]
[391375434,1760589021450,4731.0,0.00027397,120]
[391375444,1760589031747,-265.86992524,0.00013699,2]
[391375448,1760589031805,-173.86007476,0.00013699,2]
[391375449,1760589031815,-250.0,0.00014021,2]
[391375450,1760589031824,-2500.0,0.00014021,2]
[391375451,1760589031833,-290.11072643,0.0001413,3]
[391375452,1760589031862,-375.88927357,0.0001413,3]
[391375453,1760589031871,-57.71227427,0.00014329,2]
[391375454,1760589031919,-442.28772573,0.00014329,2]
[391375455,1760589031928,-340.95093483,0.00014413,2]
[391375456,1760589031940,-2159.04906517,0.00014413,2]
[391375457,1760589031949,-2218.97171078,0.00014413,2]
[391375458,1760589031958,-150.0,0.00014435,2]
[391375459,1760589031968,-2366.3273859,0.00014502,2]
[391375460,1760589031992,-500.42618454,0.00014502,2]
[391375461,1760589032001,-1000.0,0.000146,2]
[391375462,1760589032011,-1000.0,0.000146,3]
[391375463,1760589032021,-7495.72439881,0.0001485,2]
[391375464,1760589032030,-10439.33991456,0.0001489,2]
[391375465,1760589032039,-880.10874,0.000149,2]
[391375466,1760589032049,-195.08247058,0.0001492,2]
[391375467,1760589032060,-14764.54411334,0.00014957,2]
[391375468,1760589032069,-152.30064165,0.00014957,2]
[391375469,1760589032079,-500.95564672,0.00014973,2]
[391375470,1760589032088,-503.0663356,0.00014973,2]
[391375471,1760589032098,-506.18334773,0.00014973,2]
[391375472,1760589032112,-506.61231004,0.00014973,2]
[391375473,1760589032122,-500.0,0.00014975,2]
[391375474,1760589032131,-123049.80975565,0.0001499,2]
[391375475,1760589032141,-1974.66203,0.0001499,2]
[391375476,1760589032151,-180.92508941,0.0001499,2]
[391375477,1760589032160,-170.48416088,0.00014999,2]
[391375478,1760589032169,-416.89841746,0.00014999,2]
[391375479,1760589032179,-500.0,0.00014999,2]
[391375480,1760589032189,-265.3426069,0.00014999,2]
[391375481,1760589032198,-530.75109398,0.00014999,2]
[391375482,1760589032207,-500.0,0.00014999,2]
[391375483,1760589032217,-538.55984714,0.00014999,2]
[391375484,1760589032226,-500.0,0.00014999,2]
[391375485,1760589032237,-368.08929922,0.00014999,2]
[391375486,1760589032246,-500.0,0.00014999,2]
[391375487,1760589032256,-500.0,0.00014999,2]
[391375488,1760589032265,-500.0,0.00014999,2]
[391375489,1760589032274,-500.0,0.00014999,2]
[391375490,1760589032284,-1016.86964635,0.00014999,5]
[391375491,1760589032293,-1016.86964635,0.00014999,5]
[391375492,1760589032302,-1016.86964635,0.00014999,5]
[391375494,1760589032311,-1016.86964635,0.00014999,5]
[391375496,1760589032321,-1016.86964637,0.00014999,5]
[391375498,1760589032330,-1419390.0500853,0.00015,2]
[391375501,1760589032342,-103392.7962213,0.00015,2]
[391375503,1760589032353,-38095.04119637,0.00015,2]
[391375505,1760589032365,-49187.62834307,0.00015,2]
[391375507,1760589032376,-55670.2276306,0.00015,2]
[391375509,1760589032388,-392.54313184,0.00015,2]
[391375513,1760589032411,-13747.53908174,0.00015,2]
[391375515,1760589032422,-435.59869538,0.00015,2]
[391375517,1760589032433,-5934.27856082,0.00015,2]
[391375519,1760589032445,-343.24244796,0.00015,2]
[391375521,1760589032456,-453.76047859,0.00015,2]
[391375525,1760589032475,-440.56810984,0.00015,2]
[391375527,1760589032493,-2861.97121494,0.00015,2]
[391375550,1760589037798,-433.80461899,0.0001499,2]
[391375551,1760589037917,-751.84040303,0.0001499,2]
[391375552,1760589037962,-1492.53319414,0.0001499,2]
[391375553,1760589038021,-4034.70999996,0.0001499,2]
[391375724,1760589039968,-283.6194831,0.0001499,2]
[391376049,1760589043156,-1000.0,0.000148,4]
[391376051,1760589043166,-9390.72405045,0.0001499,2]
[391376053,1760589043175,-151.0,0.00014997,2]
[391376055,1760589043185,-398645.36997006,0.00015,2]
[391376057,1760589043194,-48675.10559098,0.00015,2]
[391376059,1760589043204,-880.10875,0.0001502,2]
[391376061,1760589043213,-3307.6152265,0.00015057,2]
[391376063,1760589043222,-250.0,0.00015068,2]
[391376065,1760589043232,-2500.0,0.00015068,2]
[391376067,1760589043242,-10439.33991455,0.00015099,2]
[391376069,1760589043251,-1412.3906628,0.00015111,2]
[391376071,1760589043260,-880.10874,0.0001515,2]
[391376073,1760589043271,-273.81,0.00015178,2]
[391376075,1760589043282,-151.85,0.00015205,2]
[391376077,1760589043291,-301.04,0.00015205,2]
[391376079,1760589043300,-195.08247049,0.0001527,2]
[391376081,1760589043313,-880.10875,0.0001527,2]
[391376083,1760589043324,-10439.33991455,0.00015308,2]
[391376085,1760589043334,-880.10874,0.000154,2]
[391376087,1760589043344,-211.62625251,0.00015482,2]
[391376089,1760589043353,-10439.33991455,0.00015518,2]
[391376091,1760589043363,-880.10875,0.0001552,2]
[391376093,1760589043372,-152.30064161,0.00015579,2]
[391376095,1760589043382,-166.66,0.00015602,2]
[391376097,1760589043395,-195.08247049,0.0001562,2]
[391376099,1760589043405,-14764.54411333,0.00015648,2]
[391376101,1760589043414,-10439.33991455,0.00015727,2]
[391376103,1760589043424,-1211.91,0.00015743,2]
[391376105,1760589043433,-681.56,0.00015797,2]
[391376107,1760589043443,-166.66,0.0001593,2]
[391376108,1760589043453,-10439.33991455,0.00015936,2]
[391376109,1760589043462,-195.08247049,0.00015969,2]
[391376110,1760589043471,-14764.54411333,0.00015994,2]
[391376111,1760589043481,-800.01,0.00016054,2]
[391376112,1760589043491,-564.69623724,0.0001609,2]
[391376113,1760589043501,-200.0,0.00016129,2]
[391376114,1760589043511,-150.57538399,0.00016136,5]
[391376115,1760589043520,-2023.51704238,0.00016136,2]
[391376357,1760589046478,-138.40944107,0.00016136,2]
[391376359,1760589046487,-162.7095186,0.00016145,2]
[391376367,1760589046566,-5920.51459039,0.00016145,2]
[391376369,1760589046579,-4356.11580556,0.00016145,2]
[391376372,1760589046590,-1852.42,0.00016146,2]
[391376373,1760589046599,-1000.0,0.00016151,2]
[391376376,1760589046610,-152.30064161,0.00016201,2]
[391376378,1760589046620,-157.01,0.00016214,2]
[391376380,1760589046631,-166.66,0.00016259,2]
[391376382,1760589046641,-250.0,0.0001627,7]
[391376384,1760589046651,-195.08247049,0.00016319,2]
[391376385,1760589046661,-2970.41108234,0.00016339,2]
[391380536,1760589109951,2471.0,0.00027397,120]
[391380537,1760589192210,500.0,0.00027397,120]
[391380538,1760589197529,2000.0,0.00027397,120]
[391380539,1760589210716,500.0,0.00027397,120]
[391380540,1760589215336,500.0,0.00027397,120]
[391380543,1760589551248,743.8992852,0.000273,120]
[391380544,1760589750399,176.0,7.691e-05,2]
[391380545,1760589750655,176.0,9.614e-05,2]
[391380546,1760589750837,176.0,0.00011536,2]
[391380547,1760589763039,160.57937,0.0002739,120]
[391380548,1760589792452,500.0,0.00027397,120]
[391380549,1760589800703,500.0,0.00027397,120]
[391380550,1760589805587,500.0,0.00027397,120]
[391380551,1760589972006,500.0,0.00027397,120]
[391380557,1760590232294,-176.0,0.00013459,2]
[391380558,1760590232304,-300.0,0.00014131,2]
[391380559,1760590232314,-559.0,0.00014804,2]
[391380560,1760590232323,-300.0,0.00014804,2]
[391380561,1760590232333,-300.0,0.00014804,2]
[391380562,1760590232342,-1200.0,0.00014804,2]
[391380563,1760590232351,-195.0,0.00014805,2]
[391380564,1760590232360,-300.0,0.00014805,2]
[391380565,1760590232370,-1129.99999999,0.00014999,2]
[391380566,1760590232403,-1111.38609621,0.00014999,2]
[391380567,1760590232449,-326.01470679,0.00014999,2]
[391380800,1760590240368,-153.19680251,0.00014999,2]
[391380802,1760590240378,-160.65,0.00014999,2]
[391380804,1760590240387,-152.22,0.00015058,2]
[391380806,1760590240396,-157.44,0.00015063,2]
[391380808,1760590240405,-250.0,0.00015089,7]
[391380810,1760590240415,-4722.14184187,0.00015138,2]
[391380814,1760590240434,-770.31914986,0.00015138,2]
[391380817,1760590240458,-269.20508953,0.00015138,2]
[391380819,1760590240470,-1457.85398438,0.00015138,2]
[391380825,1760590240523,-441.804514,0.00015138,2]
[391381094,1760590243241,-1243.90054672,0.00015138,2]
[391381099,1760590243280,-350.23,0.00015138,2]
[391381106,1760590243337,-450.20000004,0.00015138,2]
[391381114,1760590243410,-449.18980578,0.00015138,2]
[391381371,1760590245970,-8320.4,0.00015138,2]
[391381383,1760590246082,-3901.8,0.00015138,2]
[391381385,1760590246093,-4985.88579999,0.00015138,2]
[391381388,1760590246104,-4417.54978199,0.00015138,2]
[391381398,1760590246196,-1413.249995,0.00015138,2]
[391381405,1760590246254,-7759.04606756,0.00015138,2]
[391386947,1760590393878,500.0,0.00027397,120]
[391386948,1760590397879,2000.0,0.00027397,120]
[391386949,1760590415924,500.0,0.00027397,120]
[391386950,1760590417196,500.0,0.00027397,120]
[391386956,1760590883285,500.0,0.00027397,120]
[391386957,1760590898014,1034.78,0.000249,120]
[391386960,1760590995239,1000.0,0.00027397,120]
[391386961,1760590995431,1000.0,0.00027397,120]
[391386962,1760590995672,1000.0,0.00027397,120]
[391386963,1760590995951,1000.0,0.00027397,120]
[391386964,1760590996200,1000.0,0.00027397,120]
[391386965,1760590997019,1000.0,0.00027397,120]
[391386966,1760590997117,1000.0,0.00027397,120]
[391386967,1760590997235,1006.50438064,0.00027397,120]
[391386968,1760590997567,386.936025,0.00027397,120]
[391386969,1760591002082,500.0,0.00027397,120]
[391386984,1760591166219,301.46,0.00027397,120]
[391386998,1760591407353,818.00999844,0.00027397,120]
[391386999,1760591432275,-458.12,0.00013699,2]
[391387000,1760591432285,-2606.15349633,0.00013884,2]
[391387001,1760591432295,-295.97326011,0.00014162,2]
[391387002,1760591432304,-1211.91,0.00014262,2]
[391387003,1760591432314,-1000.0,0.00014314,2]
[391387004,1760591432323,-200.0,0.00014351,2]
[391387005,1760591432333,-1170.82,0.00014356,2]
[391387006,1760591432342,-166.66,0.00014439,2]
[391387007,1760591432352,-1600.0,0.00014545,2]
[391387008,1760591432361,-606.77,0.00014545,2]
[391387009,1760591432372,-682.34,0.00014638,2]
[391387010,1760591432382,-200.0,0.00014656,2]
[391387011,1760591432390,-226.92345805,0.00014712,2]
[391387012,1760591432401,-502.0,0.00014712,2]
[391387013,1760591432410,-166.66,0.00014743,2]
[391387014,1760591432420,-800.01,0.00014787,2]
[391387015,1760591432429,-1471.13,0.00014791,2]
[391387016,1760591432438,-166.66,0.00014821,2]
[391387017,1760591432448,-166.66,0.00015047,2]
[391387018,1760591432457,-300.0,0.00015068,2]
[391387019,1760591432466,-2500.0,0.00015068,2]
[391387020,1760591432476,-300.0,0.00015068,2]
[391387021,1760591432485,-2223.7985038,0.00015138,2]
[391387022,1760591432494,-3328.7097492,0.00015138,2]
[391387023,1760591432504,-151.0,0.00015138,2]
[391387024,1760591432514,-2747.59388,0.00015138,2]
[391387025,1760591432523,-256.77,0.0001532,2]
[391387026,1760591432532,-166.66,0.00015351,2]
[391387027,1760591432542,-176.0,0.00015382,2]
[391387028,1760591432551,-223.81,0.00015384,2]
[391387030,1760591432561,-408.53,0.00015385,2]
[391387032,1760591432570,-250.0,0.00015398,2]
[391387034,1760591432580,-2747.59388,0.0001541,2]
[391387036,1760591432590,-11398.44292926,0.00015427,2]
[391387037,1760591432600,-474.4,0.00015479,2]
[391387038,1760591432610,-472.32,0.00015479,2]
[391387040,1760591432620,-151.0,0.00015524,2]
[391387042,1760591432630,-3055.86357961,0.00015526,2]
[391387044,1760591432639,-7194.1873262,0.00015527,2]
[391387046,1760591432648,-1997.4320614,0.00015527,2]
[391387048,1760591432658,-11502.3516568,0.00015527,2]
[391387051,1760591432667,-91589.443001,0.00015527,2]
[391387053,1760591432676,-10733.5195926,0.00015527,2]
[391387055,1760591432685,-5713.1372558,0.00015527,2]
[391387056,1760591432696,-7795.3581405,0.00015527,2]
[391387059,1760591432705,-11398.44292921,0.00015528,2]
[391387061,1760591432715,-2751.0,0.00015532,2]
[391387063,1760591432724,-2486.1,0.00015532,2]
[391387065,1760591432734,-500.0,0.00015573,2]
[391387067,1760591432744,-500.0,0.00015573,2]
[391387069,1760591432753,-175.6429173,0.00015573,2]
[391387071,1760591432763,-500.0,0.00015573,2]
[391387073,1760591432772,-547.99297014,0.00015573,2]
[391387074,1760591432782,-318.6765888,0.0001558,2]
[391387075,1760591432791,-231.11,0.00015581,2]
[391387076,1760591432801,-322.6107,0.00015581,2]
[391387077,1760591432812,-151.0,0.00015581,2]
[391387078,1760591432821,-151.0,0.00015581,2]
[391387079,1760591432831,-151.0,0.00015581,2]
[391387080,1760591432840,-5535.72352657,0.00015581,2]
[391387081,1760591432850,-250.0,0.00015581,2]
[391387082,1760591432860,-151.0,0.00015581,2]
[391387083,1760591432869,-250.0,0.00015581,2]
[391387084,1760591432878,-151.0,0.00015581,2]
[391387085,1760591432887,-721.12765535,0.00015581,2]
[391387086,1760591432897,-151.0,0.00015581,2]
[391387087,1760591432906,-151.0,0.00015581,2]
[391387088,1760591432915,-284.0,0.00015581,2]
[391387089,1760591432924,-1000.0,0.00015581,2]
[391387090,1760591432934,-1000.0,0.00015581,2]
[391387091,1760591432943,-1000.0,0.00015581,2]
[391387092,1760591432953,-1000.0,0.00015581,2]
[391387093,1760591432963,-250.0,0.00015581,2]
[391387094,1760591432972,-1000.0,0.00015581,2]
[391387095,1760591432984,-250.0,0.00015581,2]
[391387096,1760591432993,-250.0,0.00015581,2]
[391387097,1760591433003,-156.587,0.00015581,2]
[391387098,1760591433012,-250.0,0.00015581,2]
[391387099,1760591433021,-1000.0,0.00015581,2]
[391387100,1760591433032,-250.0,0.00015581,2]
[391387101,1760591433042,-250.0,0.00015581,2]
[391387102,1760591433051,-1000.0,0.00015581,2]
[391387103,1760591433062,-162.380719,0.00015581,2]
[391387104,1760591433071,-250.0,0.00015581,2]
[391387105,1760591433080,-250.0,0.00015581,2]
[391387106,1760591433089,-250.0,0.00015581,2]
[391387107,1760591433099,-168.3888056,0.00015581,2]
[391387108,1760591433108,-1000.0,0.00015581,2]
[391387109,1760591433117,-250.0,0.00015581,2]
[391387110,1760591433129,-1000.0,0.00015581,2]
[391387111,1760591433139,-174.61919141,0.00015581,2]
[391387112,1760591433148,-250.0,0.00015581,2]
[391387113,1760591433157,-1000.0,0.00015581,2]
[391387114,1760591433166,-250.0,0.00015581,2]
[391387115,1760591433175,-250.0,0.00015581,2]
[391387116,1760591433184,-1000.0,0.00015581,2]
[391387117,1760591433193,-181.08010149,0.00015581,2]
[391387118,1760591433203,-250.0,0.00015581,2]
[391387119,1760591433212,-250.0,0.00015581,2]
[391387120,1760591433221,-250.0,0.00015581,2]
[391387121,1760591433230,-1000.0,0.00015581,2]
[391387122,1760591433239,-187.78006525,0.00015581,2]
[391387123,1760591433248,-250.0,0.00015581,2]
[391387124,1760591433258,-250.0,0.00015581,2]
[391387125,1760591433267,-250.0,0.00015581,2]
[391387126,1760591433276,-1000.0,0.00015581,2]
[391387127,1760591433285,-194.72792766,0.00015581,2]
[391387128,1760591433294,-250.0,0.00015581,2]
[391387129,1760591433303,-1000.0,0.00015581,2]
[391387130,1760591433313,-250.0,0.00015581,2]
[391387131,1760591433322,-250.0,0.00015581,2]
[391387132,1760591433332,-201.93286099,0.00015581,2]
[391387133,1760591433341,-250.0,0.00015581,2]
[391387134,1760591433350,-1000.0,0.00015581,2]
[391387135,1760591433360,-250.0,0.00015581,2]
[391387136,1760591433369,-250.0,0.00015581,2]
[391387137,1760591433382,-209.40437684,0.00015581,2]
[391387138,1760591433391,-1000.0,0.00015581,2]
[391387139,1760591433400,-250.0,0.00015581,2]
[391387140,1760591433410,-250.0,0.00015581,2]
[391387141,1760591433419,-217.15233878,0.00015581,2]
[391387142,1760591433428,-250.0,0.00015581,2]
[391387143,1760591433438,-1000.0,0.00015581,2]
[391387144,1760591433448,-225.18697532,0.00015581,2]
[391387145,1760591433457,-250.0,0.00015581,2]
[391387146,1760591433466,-277.35679052,0.00015581,2]
[391387147,1760591433475,-1000.0,0.00015581,2]
[391387148,1760591433484,-1000.0,0.00015581,2]
[391387149,1760591433494,-233.51889341,0.00015581,2]
[391387150,1760591433503,-1000.0,0.00015581,2]
[391387151,1760591433512,-242.15909246,0.00015581,2]
[391387152,1760591433522,-251.11897888,0.00015581,2]
[391387153,1760591433531,-1000.0,0.00015581,2]
[391387154,1760591433540,-260.4103811,0.00015581,2]
[391387155,1760591433549,-1000.0,0.00015581,2]
[391387156,1760591433559,-270.0455652,0.00015581,2]
[391387157,1760591433568,-1000.0,0.00015581,2]
[391387158,1760591433577,-280.03725112,0.00015581,2]
[391387159,1760591433586,-276.51338752,0.00015581,2]
[391387160,1760591433595,-1000.0,0.00015581,2]
[391387161,1760591433604,-1000.0,0.00015581,2]
[391387162,1760591433614,-1000.0,0.00015581,2]
[391387163,1760591433624,-1000.0,0.00015581,2]
[391387164,1760591433634,-250.0,0.00015581,2]
[391387165,1760591433644,-250.0,0.00015581,2]
[391387166,1760591433655,-250.0,0.00015581,2]
[391387167,1760591433665,-250.0,0.00015581,2]
[391387168,1760591433675,-250.0,0.00015581,2]
[391387169,1760591433686,-250.0,0.00015581,2]
[391387170,1760591433698,-250.0,0.00015581,2]
[391387171,1760591433708,-250.0,0.00015581,2]
[391387172,1760591433718,-250.0,0.00015581,2]
[391387173,1760591433727,-250.0,0.00015581,2]
[391387174,1760591433738,-250.0,0.00015581,2]
[391387175,1760591433747,-250.0,0.00015581,2]
[391387176,1760591433757,-151.0,0.00015581,2]
[391387177,1760591433767,-250.0,0.00015581,2]
[391387178,1760591433776,-151.0,0.00015581,2]
[391387179,1760591433785,-250.0,0.00015581,2]
[391387180,1760591433795,-151.0,0.00015581,2]
[391387181,1760591433805,-250.0,0.00015581,2]
[391387182,1760591433814,-151.0,0.00015581,2]
[391387183,1760591433825,-250.0,0.00015581,2]
[391387184,1760591433835,-151.0,0.00015581,2]
[391387185,1760591433845,-250.0,0.00015581,2]
[391387186,1760591433854,-151.0,0.00015581,2]
[391387187,1760591433864,-250.0,0.00015581,2]
[391387188,1760591433874,-151.0,0.00015581,2]
[391387189,1760591433884,-199.88565917,0.00015581,2]
[391387190,1760591433893,-151.0,0.00015581,2]
[391387191,1760591433903,-151.0,0.00015581,2]
[391387192,1760591433912,-151.0,0.00015581,2]
[391387193,1760591433921,-151.0,0.00015581,2]
[391387194,1760591433931,-1000.0,0.000156,2]
[391387195,1760591433940,-273.81,0.00015616,2]
[391387196,1760591433951,-301.04,0.00015616,2]
[391387197,1760591433960,-151.85,0.00015616,2]
[391387198,1760591433969,-266.19,0.00015616,2]
[391387199,1760591433980,-175.87,0.00015616,2]
[391387200,1760591433992,-176.0,0.00015616,2]
[391387201,1760591434001,-166.66,0.00015655,2]
[391387202,1760591434011,-300.0,0.00015671,2]
[391387203,1760591434020,-151.0,0.00015829,2]
[391387204,1760591434030,-231.11,0.00015855,2]
[391387205,1760591434039,-2747.59389,0.0001591,2]
[391387206,1760591434049,-166.66,0.00015959,2]
[391387207,1760591434058,-10053.1499217,0.00016,2]
[391387411,1760591440390,-5771.7375566,0.00015527,2]
[391387418,1760591440448,-399.52180005,0.00015527,2]
[391387420,1760591440459,-556.3,0.00015527,2]
[391387427,1760591440507,-6161.41854341,0.00015527,2]
[391387429,1760591440517,-151.0,0.00015581,2]
[391387431,1760591440526,-11398.44292921,0.00015629,2]
[391387433,1760591440536,-11398.44292921,0.00015731,2]
[391387435,1760591440546,-9999.1100783,0.00016,2]
[391387437,1760591440555,-2127.32412318,0.00016012,2]
[391387439,1760591440565,-413.53,0.00016027,2]
[391387441,1760591440574,-340.38518708,0.00016036,2]
[391387443,1760591440584,-300.46,0.00016055,2]
[391387445,1760591440594,-1000.0,0.00016104,2]
[391387447,1760591440604,-505.09838233,0.00016121,2]
[391387449,1760591440614,-508.73606223,0.00016121,2]
[391387451,1760591440623,-502.64862122,0.00016121,2]
[391387453,1760591440633,-231.13884059,0.00016129,2]
[391387455,1760591440642,-156.06597641,0.0001614,2]
[391387457,1760591440651,-12991.04859376,0.00016142,2]
[391387459,1760591440664,-156.06597639,0.00016162,2]
[391387461,1760591440674,-12991.04859376,0.00016167,2]
[391387463,1760591440684,-800.64,0.0001618,2]
[391387465,1760591440693,-29731.96525533,0.0001618,2]
[391387778,1760591443886,-176.0,0.00015616,2]
[391387780,1760591443895,-3796.09929284,0.0001618,2]
[391387782,1760591443907,-21155.93717801,0.0001618,2]
[391387784,1760591443916,-157.544389,0.0001618,2]
[391387786,1760591443926,-151.0,0.0001618,2]
[391387788,1760591443935,-151.0,0.0001618,2]
[391387790,1760591443945,-160.215553,0.0001618,2]
[391387792,1760591443954,-154.39145,0.0001618,2]
[391387794,1760591443963,-2200.620298,0.0001618,2]
[391387796,1760591443973,-160.215553,0.0001618,2]
[391387798,1760591443989,-2200.620298,0.0001618,2]
[391387800,1760591444002,-160.215553,0.0001618,2]
[391387802,1760591444012,-2200.620298,0.0001618,2]
[391387804,1760591444022,-151.0,0.0001618,2]
[391387806,1760591444032,-160.215553,0.0001618,2]
[391387808,1760591444041,-151.0,0.0001618,2]
[391387810,1760591444050,-2200.620298,0.0001618,2]
[391387812,1760591444060,-151.0,0.0001618,2]
[391387814,1760591444068,-151.949657,0.0001618,2]
[391387816,1760591444078,-301.99999994,0.0001618,2]
[391387818,1760591444087,-151.0,0.0001618,2]
[391387820,1760591444097,-151.0,0.0001618,2]
[391387822,1760591444106,-160.187536,0.0001618,2]
[391387824,1760591444116,-151.0,0.0001618,2]
[391387826,1760591444125,-152.341927,0.0001618,2]